bitfinex/quotes_SOLUSD_20241113
["timestamp","ask_amount","ask_price","bid_price","bid_amount"]
[1731527888800,46.31475595,211.07,210.97,46.31475595]
[1731527888993,46.31475595,211.07,210.99,46.31475595]
[1731527889307,46.31475595,211.07,210.97,46.31475595]
[1731527889512,46.31475595,211.07,210.88,44.4216]
[1731527889513,46.31475595,211.01,210.93,46.31475595]
[1731527889896,46.31475595,210.99,210.91,46.31475595]
[1731527890210,46.31475595,210.93,210.83,46.31475595]
[1731527890422,46.31475595,210.9,210.81,58.92755595]
[1731527890709,46.31475595,210.92,210.83,46.31475595]
[1731527890890,4.741,210.93,210.81,58.92755595]
[1731527890891,46.31475595,210.9,210.81,58.92755595]
[1731527891091,46.31475595,210.9,210.81,46.31475595]
[1731527891596,46.31475595,210.92,210.83,46.31475595]
[1731527892388,51.05595595,210.92,210.83,46.31475595]
[1731527892605,155.1,210.93,210.85,46.31475595]
[1731527892907,155.1,210.93,210.87,46.31475595]
[1731527893105,46.31475595,210.97,210.89,46.31475595]
[1731527894314,51.05485595,210.97,210.87,46.31475595]
[1731527894500,46.31475595,210.97,210.89,46.31475595]
[1731527894701,158.27074302,211.04,210.91,46.31475595]
[1731527894906,46.31475595,211.01,210.93,46.31475595]
[1731527895109,46.31475595,211.01,210.81,3.26714907]
[1731527895110,46.31475595,211.01,210.91,46.31475595]
[1731527895292,46.31475595,210.99,210.91,46.31475595]
[1731527895608,46.31475595,210.98,210.88,46.31475595]
[1731527895795,46.31475595,210.98,210.9,46.31475595]
[1731527896801,46.31475595,210.98,210.88,46.31475595]
[1731527897196,51.05415595,211.0,210.92,46.31475595]
[1731527897514,155.2,211.07,210.87,46.31475595]
[1731527897515,46.31475595,211.02,210.94,46.31475595]
[1731527898114,51.05365595,211.02,210.94,46.31475595]
[1731527899108,46.31475595,211.09,211.01,46.31475595]
[1731527899303,4.7375,211.08,211.01,46.31475595]
[1731527899506,46.31475595,211.09,211.01,46.31475595]
[1731527899807,46.31475595,211.12,211.04,46.31475595]
[1731527900204,46.31475595,211.1,211.02,46.31475595]
[1731527900417,46.31475595,211.1,211.0,46.31475595]
[1731527900609,46.31475595,211.06,210.96,46.31475595]
[1731527900799,46.31475595,211.02,210.95,31.3957]
[1731527901004,46.31475595,211.06,210.97,46.31475595]
[1731527901520,46.31475595,211.08,210.99,46.31475595]
[1731527901731,46.31475595,211.06,210.97,46.31475595]
[1731527902021,4.7391,211.01,210.93,46.31475595]
[1731527902624,46.31475595,211.02,210.93,46.31475595]
[1731527902820,46.31475595,211.0,210.93,46.31475595]
[1731527903198,46.31475595,211.02,210.93,46.31475595]
[1731527904418,11.8439,211.08,210.99,46.31475595]
[1731527904419,46.31475595,211.07,210.99,46.31475595]
[1731527904794,46.31475595,211.05,210.97,46.31475595]
[1731527905299,46.31475595,211.05,210.91,13.0608]
[1731527905300,46.31475595,211.05,210.95,46.31475595]
[1731527905709,46.31475595,211.01,210.93,46.31475595]
[1731527906399,46.31475595,210.97,210.88,46.31475595]
[1731527906598,46.31475595,210.99,210.87,30.7245]
[1731527906805,46.31475595,210.97,210.89,46.31475595]
[1731527907103,46.31475595,211.01,210.93,46.31475595]
[1731527908220,4.7386,211.03,210.95,46.31475595]
[1731527908221,46.31475595,211.03,210.95,46.31475595]
[1731527908429,46.31475595,211.05,210.97,46.31475595]
[1731527909025,46.31475595,211.11,211.01,46.31475595]
[1731527909399,46.31475595,211.11,211.03,46.31475595]
[1731527909600,46.31475595,211.11,210.97,0.1]
[1731527909601,46.31475595,211.13,211.05,46.31475595]
[1731527910018,46.31475595,211.15,211.07,46.31475595]
[1731527911003,46.31475595,211.19,211.12,46.31475595]
[1731527911807,46.31475595,211.19,211.04,32.7287]
[1731527911808,46.31475595,211.17,211.08,46.31475595]
[1731527913622,46.31475595,211.17,211.05,0.1]
[1731527913623,46.31475595,211.19,211.1,46.31475595]
[1731527914322,46.31475595,211.21,211.12,46.31475595]
[1731527914529,46.31475595,211.13,211.04,32.6287]
[1731527914699,46.31475595,211.13,211.05,46.31475595]
[1731527914904,46.31475595,211.15,211.05,46.31475595]
[1731527915320,46.31475595,211.15,211.07,46.31475595]
[1731527916023,46.31475595,211.15,211.05,46.31475595]
[1731527916224,46.31475595,211.19,211.11,46.31475595]
[1731527916433,46.31475595,211.17,211.09,46.31475595]
[1731527916603,46.31475595,211.21,211.11,46.31475595]
[1731527917024,46.31475595,211.19,211.11,46.31475595]
[1731527918360,46.31475595,211.17,211.09,46.31475595]
[1731527918721,46.31475595,211.15,211.07,46.31475595]
[1731527919332,46.31475595,211.11,211.04,32.6287]
[1731527919510,46.31475595,211.11,211.01,46.31475595]
[1731527919709,46.31475595,211.09,211.01,46.31475595]
[1731527919908,51.05205595,211.09,211.01,46.31475595]
[1731527920126,46.31475595,211.07,210.99,46.31475595]
[1731527920926,46.31475595,211.09,211.01,46.31475595]
[1731527921830,46.31475595,211.11,211.01,46.31475595]
[1731527922024,51.05175595,211.11,211.01,46.31475595]
[1731527922430,160.5,211.13,211.06,46.31475595]
[1731527922431,46.31475595,211.13,211.06,46.31475595]
[1731527922625,46.31475595,211.18,211.1,46.31475595]
[1731527922827,46.31475595,211.2,211.1,46.31475595]
[1731527923136,165.2345,211.22,210.99,0.12549]
[1731527923137,46.31475595,211.22,211.12,46.31475595]
[1731527923836,46.31475595,211.27,211.2,46.31475595]
[1731527924148,46.31475595,211.29,211.21,46.31475595]
[1731527924522,46.31475595,211.27,211.2,46.31475595]
[1731527924935,46.31475595,211.28,211.2,46.31475595]
[1731527925144,46.31475595,211.32,211.22,46.31475595]
[1731527925516,46.31475595,211.31,211.22,46.31475595]
[1731527925732,46.31475595,211.3,211.22,46.31475595]
[1731527926243,160.5,211.36,211.19,46.31475595]
[1731527926244,51.04795595,211.27,211.19,46.31475595]
[1731527926447,51.04795595,211.27,211.17,46.31475595]
[1731527926448,46.31475595,211.24,211.17,46.31475595]
[1731527926615,46.31475595,211.24,211.16,46.31475595]
[1731527926815,46.31475595,211.18,211.1,59.18515595]
[1731527927037,46.31475595,211.18,211.1,46.31475595]
[1731527927239,0.4640405,211.23,211.15,46.31475595]
[1731527927548,0.4640405,211.23,211.11,46.31475595]
[1731527927549,46.31475595,211.19,211.11,46.31475595]
[1731527927914,46.31475595,211.22,211.15,46.31475595]
[1731527928115,46.77879645,211.23,211.16,46.31475595]
[1731527928538,0.4640405,211.23,211.17,46.31475595]
[1731527928848,46.31475595,211.21,211.14,46.31475595]
[1731527929022,46.31475595,211.19,211.12,46.31475595]
[1731527929857,46.31475595,211.19,211.1,46.31475595]
[1731527930023,46.31475595,211.19,211.12,46.31475595]
[1731527931844,46.31475595,211.21,211.12,46.31475595]
[1731527932525,46.31475595,211.21,211.14,46.31475595]
[1731527932718,0.4640405,211.23,211.16,46.31475595]
[1731527932923,0.4640405,211.23,211.19,46.31475595]
[1731527933145,0.4640405,211.23,211.1,0.22549]
[1731527933146,0.4640405,211.23,211.2,46.31475595]
[1731527934123,0.4640405,211.23,211.16,46.31475595]
[1731527934321,46.31475595,211.2,211.12,46.31475595]
[1731527934631,4.735,211.19,211.12,46.31475595]
[1731527934828,51.04955595,211.2,211.12,46.31475595]
[1731527935229,0.4640405,211.23,211.16,46.31475595]
[1731527935731,46.31475595,211.22,211.14,46.31475595]
[1731527936549,46.31475595,211.16,211.08,46.31475595]
[1731527936739,46.31475595,211.14,211.06,46.31475595]
[1731527937133,46.31475595,211.12,211.04,46.31475595]
[1731527937528,23.776884,211.13,211.04,46.31475595]
[1731527937725,46.31475595,211.14,211.06,46.31475595]
[1731527938340,46.31475595,211.14,211.04,46.31475595]
[1731527938544,46.31475595,211.12,211.04,46.31475595]
[1731527939032,23.776884,211.13,211.04,46.31475595]
[1731527939838,23.776884,211.05,210.94,46.31475595]
[1731527940157,46.31475595,210.96,210.86,46.31475595]
[1731527940359,46.31475595,210.96,210.81,32.8049]
[1731527940360,46.31475595,210.92,210.84,46.31475595]
[1731527940529,46.31475595,210.9,210.82,46.31475595]
[1731527941025,160.5,210.95,210.86,46.31475595]
[1731527941026,46.31475595,210.94,210.86,46.31475595]
[1731527941351,46.31475595,210.9,210.8,46.31475595]
[1731527941533,23.776884,210.89,210.8,46.31475595]
[1731527941744,46.31475595,210.88,210.8,46.31475595]
[1731527942245,46.31475595,210.88,210.78,46.31475595]
[1731527942246,46.31475595,210.86,210.78,46.31475595]
[1731527942455,46.31475595,210.84,210.76,46.31475595]
[1731527942626,46.31475595,210.86,210.76,46.31475595]
[1731527943734,46.31475595,210.86,210.78,46.31475595]
[1731527943929,46.31475595,210.82,210.74,46.31475595]
[1731527944124,46.31475595,210.84,210.74,46.31475595]
[1731527944554,46.31475595,210.84,210.76,46.31475595]
[1731527945445,46.31475595,210.88,210.78,46.31475595]
[1731527945635,206.81475595,210.9,210.82,46.31475595]
[1731527945946,46.31475595,210.92,210.84,46.31475595]
[1731527946152,206.81475595,210.94,210.86,46.31475595]
[1731527946530,46.31475595,210.94,210.86,46.31475595]
[1731527946731,46.31475595,210.9,210.82,46.31475595]
[1731527946950,46.31475595,210.9,210.8,46.31475595]
[1731527947134,46.31475595,210.9,210.77,0.12549]
[1731527947135,46.31475595,210.84,210.77,0.12549]
[1731527947962,46.31475595,210.88,210.78,46.31475595]
[1731527948253,46.31475595,210.92,210.84,46.31475595]
[1731527948632,46.31475595,210.9,210.82,46.31475595]
[1731527950352,46.31475595,210.92,210.82,46.31475595]
[1731527950555,46.31475595,210.92,210.84,46.31475595]
[1731527950853,4.7402,210.96,210.77,0.22549]
[1731527950854,46.31475595,210.96,210.88,46.31475595]
[1731527951064,46.31475595,210.94,210.8,0.1]
[1731527951354,46.31475595,210.94,210.86,46.31475595]
[1731527952250,52.13617947,211.0,210.9,46.31475595]
[1731527952561,46.31475595,211.0,210.92,46.31475595]
[1731527953432,46.31475595,210.96,210.88,46.31475595]
[1731527953648,46.31475595,210.94,210.86,46.31475595]
[1731527953955,46.31475595,210.94,210.84,45.5315]
[1731527953956,46.31475595,210.9,210.82,46.31475595]
[1731527954659,46.31475595,210.92,210.84,46.31475595]
[1731527956161,206.81475595,210.96,210.86,46.31475595]
[1731527956860,211.55505595,210.96,210.86,46.31475595]
[1731527957359,211.55505595,210.96,210.88,46.31475595]
[1731527957661,51.05505595,210.96,210.88,46.31475595]
[1731527957835,46.31475595,210.92,210.84,46.31475595]
[1731527958436,46.31475595,210.9,210.82,46.31475595]
[1731527958637,46.31475595,210.92,210.84,46.31475595]
[1731527958857,46.31475595,210.92,210.77,45.65699]
[1731527958858,0.12549,210.91,210.77,45.65699]
[1731527959059,46.31475595,210.86,210.78,46.31475595]
[1731527959639,46.31475595,210.8,210.77,0.12549]
[1731527959847,46.31475595,210.78,210.77,0.12549]
[1731527960047,46.44024595,210.78,210.77,0.12549]
[1731527960249,46.31475595,210.78,210.77,0.12549]
[1731527960562,46.31475595,210.8,210.77,0.12549]
[1731527960867,46.31475595,210.84,210.77,4.86989]
[1731527961158,46.31475595,210.93,210.83,46.31475595]
[1731527961358,46.31475595,210.93,210.77,34.97709]
[1731527961359,42.3728,211.0,210.79,13.2187]
[1731527961564,46.31475595,210.97,210.89,46.31475595]
[1731527961863,46.31475595,210.95,210.89,46.31475595]
[1731527962156,46.31475595,210.91,210.82,46.31475595]
[1731527962361,46.31475595,210.87,210.79,13.2187]
[1731527962567,46.31475595,210.87,210.78,46.31475595]
[1731527963058,51.05695595,210.87,210.78,46.31475595]
[1731527963269,46.31475595,210.87,210.8,46.31475595]
[1731527963639,46.31475595,210.91,210.82,46.31475595]
[1731527964041,46.31475595,210.95,210.86,46.31475595]
[1731527964463,46.31475595,210.97,210.88,46.31475595]
[1731527964663,42.3728,211.0,210.92,46.31475595]
[1731527964664,30.0,211.0,210.92,46.31475595]
[1731527964867,30.0,211.0,210.94,46.31475595]
[1731527965446,46.31475595,210.95,210.88,46.31475595]
[1731527965762,46.31475595,210.95,210.86,46.31475595]
[1731527965962,0.12549,210.98,210.86,46.31475595]
[1731527965963,46.31475595,210.93,210.86,46.31475595]
[1731527967265,46.31475595,210.97,210.88,46.31475595]
[1731527967456,46.31475595,210.99,210.9,46.31475595]
[1731527967648,46.31475595,210.99,210.92,46.31475595]
[1731527968350,34.7394,211.0,210.92,46.31475595]
[1731527968657,34.7394,211.0,210.87,46.31475595]
[1731527968658,30.0,211.0,210.96,46.31475595]
[1731527968962,30.0,211.0,210.98,92.6295119]
[1731527969870,30.0,211.0,210.98,46.31475595]
[1731527970069,30.0,211.0,210.94,46.31475595]
[1731527970951,30.0,211.0,210.96,46.31475595]
[1731527971162,30.0,211.0,210.94,46.31475595]
[1731527971559,34.7394,211.0,210.92,46.31475595]
[1731527972151,30.0,211.0,210.94,46.31475595]
[1731527972663,30.0,211.0,210.92,46.31475595]
[1731527973374,46.31475595,210.99,210.9,46.31475595]
[1731527973572,46.31475595,210.99,210.92,46.31475595]
[1731527973865,30.0,211.0,210.94,46.31475595]
[1731527974370,30.0,211.0,210.84,44.2787]
[1731527974371,46.31475595,210.97,210.88,46.31475595]
[1731527975148,34.7394,211.0,210.92,46.31475595]
[1731527975357,30.0,211.0,210.96,46.31475595]
[1731527975579,30.0,211.0,210.98,46.31475595]
[1731527976078,30.0,211.0,210.94,46.31475595]
[1731527976777,30.0,211.0,210.96,46.31475595]
[1731527976951,30.0,211.0,210.98,46.31475595]
[1731527978869,30.0,211.0,210.92,46.31475595]
[1731527979071,46.31475595,210.97,210.88,46.31475595]
[1731527979453,46.31475595,210.95,210.88,46.31475595]
[1731527979959,46.31475595,210.99,210.92,46.31475595]
[1731527980155,30.0,211.0,210.92,46.31475595]
[1731527980570,34.7393,211.0,210.92,46.31475595]
[1731527980867,46.31475595,210.99,210.9,46.31475595]
[1731527982264,30.0,211.0,210.94,46.31475595]
[1731527982484,30.0,211.0,210.88,0.1]
[1731527982485,30.0,211.0,210.96,46.31475595]
[1731527982685,30.0,211.0,210.98,46.31475595]
[1731527983357,30.0,211.0,210.96,46.31475595]
[1731527983782,30.0,211.0,210.98,46.31475595]
[1731527983968,29.94934086,211.0,210.98,46.31475595]
[1731527985490,29.94934086,211.0,210.99,0.12549]
[1731527985662,29.94934086,211.0,210.99,23.902374]
[1731527986477,51.05035595,211.17,211.02,0.1]
[1731527986781,51.04985595,211.19,211.12,46.31475595]
[1731527986987,51.04985595,211.19,211.08,46.31475595]
[1731527986988,46.31475595,211.16,211.08,46.31475595]
[1731527988171,46.31475595,211.12,211.04,46.31475595]
[1731527988369,46.31475595,211.1,211.02,46.31475595]
[1731527989088,46.31475595,211.12,211.04,46.31475595]
[1731527989587,46.31475595,211.14,211.06,46.31475595]
[1731527990087,4.7357,211.16,211.01,0.1]
[1731527990088,4.736,211.15,211.01,0.1]
[1731527990266,46.31475595,211.18,211.1,46.31475595]
[1731527991391,51.05015595,211.18,211.1,46.31475595]
[1731527992583,51.05015595,211.18,211.06,46.31475595]
[1731527992584,4.7354,211.18,211.06,46.31475595]
[1731527992879,46.31475595,211.14,211.06,46.31475595]
[1731527993080,46.31475595,211.16,211.06,46.31475595]
[1731527993281,46.31475595,211.16,211.08,46.31475595]
[1731527993481,51.05045595,211.16,211.08,46.31475595]
[1731527994064,4.7357,211.16,211.08,46.31475595]
[1731527994378,4.7357,211.16,211.02,0.1]
[1731527994683,4.7357,211.16,211.1,46.31475595]
[1731527995062,4.7348,211.2,211.14,46.31475595]
[1731527995387,4.7348,211.2,211.05,0.1]
[1731527995388,51.04955595,211.2,211.12,46.31475595]
[1731527995685,46.31475595,211.13,211.04,46.31475595]
[1731527995982,46.31475595,211.09,211.0,46.31475595]
[1731527996187,46.31475595,211.09,210.9,0.1]
[1731527996188,46.31475595,211.01,210.92,46.31475595]
[1731527996363,46.31475595,211.0,210.91,46.31475595]
[1731527996563,20.0,211.04,210.91,46.31475595]
[1731527996780,46.31475595,211.0,210.91,46.31475595]
[1731527997183,46.31475595,210.98,210.89,46.31475595]
[1731527997387,46.31475595,210.94,210.85,46.31475595]
[1731527997564,46.31475595,210.92,210.83,46.31475595]
[1731527997766,160.5,211.0,210.87,46.31475595]
[1731527997767,46.31475595,210.96,210.87,46.31475595]
[1731527997975,46.31475595,210.98,210.9,46.31475595]
[1731527998488,30.6487,211.01,210.81,0.2]
[1731527998489,46.31475595,210.96,210.88,46.31475595]
[1731527999082,46.31475595,210.94,210.85,46.31475595]
[1731528000294,46.31475595,210.88,210.79,58.94095595]
[1731528000471,46.31475595,210.93,210.84,46.31475595]
[1731528000970,51.05575595,210.93,210.84,46.31475595]
[1731528001491,46.31475595,210.88,210.79,46.41475595]
[1731528001793,4.741,210.93,210.77,0.12549]
[1731528001794,46.31475595,210.86,210.77,0.12549]
[1731528001976,46.31475595,210.84,210.77,0.12549]
[1731528002177,46.31475595,210.82,210.77,0.12549]
[1731528002684,46.31475595,210.84,210.77,0.12549]
[1731528003270,46.31475595,210.79,210.77,0.12549]
[1731528003484,46.31475595,210.87,210.78,46.31475595]
[1731528003683,51.05615595,210.91,210.83,46.31475595]
[1731528004177,46.31475595,210.93,210.85,46.31475595]
[1731528004476,46.31475595,210.89,210.82,0.421]
[1731528004782,46.31475595,210.83,210.82,0.421]
[1731528005166,4.7423,210.87,210.82,0.421]
[1731528005394,46.31475595,210.91,210.84,46.31475595]
[1731528005581,46.31475595,210.91,210.82,46.73575595]
[1731528005903,46.31475595,210.93,210.84,46.31475595]
[1731528006070,46.31475595,210.91,210.82,46.73575595]
[1731528006267,46.31475595,210.87,210.82,0.421]
[1731528006466,46.31475595,210.89,210.82,0.421]
[1731528006688,46.31475595,210.85,210.82,0.421]
[1731528006998,46.31475595,210.83,210.82,0.421]
[1731528007167,160.5,210.94,210.82,0.421]
[1731528007369,20.0,210.95,210.82,0.421]
[1731528007574,165.2403,210.96,210.82,0.421]
[1731528007875,0.12549,210.95,210.82,0.421]
[1731528008071,160.5,210.96,210.82,0.421]
[1731528008290,211.55505595,210.96,210.88,46.31475595]
[1731528008493,51.05505595,210.96,210.88,46.31475595]
[1731528009086,46.31475595,210.98,210.9,46.31475595]
[1731528009668,46.31475595,210.96,210.88,46.31475595]
[1731528009872,46.31475595,211.0,210.92,46.31475595]
[1731528010099,13.0859,211.04,210.94,46.31475595]
[1731528010100,46.31475595,211.04,210.94,46.31475595]
[1731528010411,160.5,211.12,211.02,46.31475595]
[1731528010705,46.31475595,211.13,211.05,46.31475595]
[1731528010995,0.1,211.08,210.87,30.3249]
[1731528011198,0.12549,210.96,210.86,12.1183]
[1731528011492,46.31475595,210.96,210.87,46.31475595]
[1731528011690,46.31475595,210.92,210.85,46.31475595]
[1731528012197,46.41475595,210.98,210.85,46.31475595]
[1731528012198,46.31475595,210.94,210.85,46.31475595]
[1731528012695,46.31475595,211.0,210.91,46.31475595]
[1731528012872,46.31475595,211.04,210.97,46.31475595]
[1731528013074,46.31475595,210.99,210.89,46.31475595]
[1731528013281,0.1,211.03,210.82,3.6302376]
[1731528013282,46.31475595,210.92,210.82,0.421]
[1731528013489,46.31475595,210.9,210.82,0.421]
[1731528014097,0.12549,210.91,210.82,46.73575595]
[1731528014298,46.31475595,210.9,210.82,0.421]
[1731528014491,46.31475595,210.9,210.82,46.73575595]
[1731528014795,46.31475595,210.93,210.84,46.31475595]
[1731528015201,46.31475595,210.86,210.82,0.421]
[1731528015380,20.0,210.83,210.82,0.421]
[1731528015704,20.1,210.83,210.82,0.421]
[1731528015959,0.12549,210.8,210.77,0.12549]
[1731528016194,66.44024595,210.78,210.77,0.12549]
[1731528016996,0.1,210.72,210.59,46.31475595]
[1731528017200,0.1,210.72,210.57,46.31475595]
[1731528017201,0.12549,210.65,210.57,46.31475595]
[1731528017402,46.31475595,210.6,210.45,13.3627]
[1731528017599,46.31475595,210.58,210.48,51.52959645]
[1731528017901,46.31475595,210.56,210.48,51.52959645]
[1731528018103,46.31475595,210.54,210.48,0.4640405]
[1731528018400,46.31475595,210.52,210.48,0.4640405]
[1731528018578,160.5,210.54,210.48,51.52959645]
[1731528018985,46.31475595,210.61,210.52,46.31475595]
[1731528019301,0.12549,210.56,210.48,46.77879645]
[1731528019685,46.31475595,210.57,210.5,46.31475595]
[1731528020507,46.31475595,210.57,210.48,51.52979645]
[1731528020710,46.31475595,210.55,210.48,0.4640405]
[1731528021713,0.12549,210.54,210.48,0.4640405]
[1731528022419,4.7481,210.61,210.5,46.31475595]
[1731528022611,4.7481,210.61,210.48,0.4640405]
[1731528022612,46.31475595,210.64,210.54,46.31475595]
[1731528022918,46.31475595,210.64,210.48,0.4640405]
[1731528022919,46.31475595,210.57,210.48,0.4640405]
[1731528023095,46.31475595,210.57,210.48,46.77879645]
[1731528023430,46.31475595,210.55,210.48,0.4640405]
[1731528023712,46.31475595,210.55,210.48,5.2150405]
[1731528024094,46.31475595,210.59,210.5,46.31475595]
[1731528024295,46.31475595,210.53,210.48,0.4640405]
[1731528024495,46.31475595,210.55,210.48,0.4640405]
[1731528024823,46.31475595,210.57,210.48,51.52969645]
[1731528025121,46.31475595,210.53,210.48,0.4640405]
[1731528025308,0.12549,210.52,210.48,0.4640405]
[1731528025501,46.44024595,210.49,210.48,0.4640405]
[1731528026016,66.44024595,210.49,210.48,0.4640405]
[1731528026319,46.44024595,210.49,210.48,0.4640405]
[1731528027512,46.31475595,210.49,210.48,0.4640405]
[1731528027717,46.31475595,210.53,210.48,0.4640405]
[1731528028013,46.31475595,210.57,210.49,46.31475595]
[1731528028213,46.31475595,210.61,210.51,46.31475595]
[1731528028518,46.31475595,210.61,210.53,46.31475595]
[1731528028694,46.31475595,210.65,210.57,46.31475595]
[1731528029217,46.31475595,210.59,210.5,46.31475595]
[1731528029520,4.7481,210.61,210.48,0.4640405]
[1731528029521,46.31475595,210.54,210.48,0.4640405]
[1731528029725,46.31475595,210.5,210.48,0.4640405]
[1731528030520,0.1,210.47,210.28,17.1434]
[1731528030717,46.31475595,210.44,210.35,46.31475595]
[1731528030892,46.31475595,210.46,210.37,46.31475595]
[1731528031096,46.31475595,210.44,210.36,46.31475595]
[1731528031296,46.31475595,210.44,210.36,51.06835595]
[1731528031519,46.31475595,210.44,210.36,46.31475595]
[1731528031724,46.31475595,210.46,210.38,46.31475595]
[1731528031907,160.5,210.47,210.4,46.31475595]
[1731528032221,206.81475595,210.54,210.44,46.31475595]
[1731528032430,0.12549,210.53,210.44,46.31475595]
[1731528032919,3.24296442,210.57,210.44,46.31475595]
[1731528032920,0.12549,210.51,210.44,46.31475595]
[1731528033122,46.31475595,210.52,210.44,46.31475595]
[1731528033123,51.06495595,210.52,210.44,46.31475595]
[1731528033297,4.7502,210.52,210.44,46.31475595]
[1731528033825,206.81475595,210.6,210.5,46.31475595]
[1731528034121,46.31475595,210.57,210.48,46.31475595]
[1731528034427,46.31475595,210.57,210.46,12.3879]
[1731528034428,46.31475595,210.59,210.5,46.31475595]
[1731528035028,46.31475595,210.57,210.48,46.31475595]
[1731528035203,46.31475595,210.57,210.48,51.06555595]
[1731528036219,46.31475595,210.55,210.46,63.45395595]
[1731528036510,46.31475595,210.53,210.44,46.31475595]
[1731528036824,46.31475595,210.55,210.46,46.31475595]
[1731528037419,46.31475595,210.57,210.48,46.31475595]
[1731528037623,46.31475595,210.57,210.5,46.31475595]
[1731528037931,46.31475595,210.57,210.48,46.31475595]
[1731528038506,46.31475595,210.5,210.41,46.31475595]
[1731528039528,46.31475595,210.5,210.42,4.7523]
[1731528039828,46.31475595,210.56,210.47,46.31475595]
[1731528041323,165.2485,210.6,210.43,46.31475595]
[1731528041324,46.31475595,210.52,210.43,46.31475595]
[1731528041513,46.31475595,210.56,210.47,46.31475595]
[1731528041704,46.31475595,210.53,210.44,46.31475595]
[1731528042114,46.31475595,210.55,210.44,46.31475595]
[1731528042928,46.31475595,210.55,210.45,4.7517]
[1731528043231,46.31475595,210.57,210.46,46.31475595]
[1731528043811,46.31475595,210.51,210.45,4.7517]
[1731528044006,46.31475595,210.47,210.28,0.1]
[1731528044207,46.31475595,210.42,210.33,46.31475595]
[1731528045040,46.31475595,210.4,210.32,4.7545]
[1731528045427,160.5,210.46,210.32,4.7545]
[1731528045428,46.31475595,210.42,210.32,4.7545]
[1731528045812,46.31475595,210.38,210.31,12.5899]
[1731528046214,46.31475595,210.32,210.27,0.4640405]
[1731528046415,46.31475595,210.3,210.27,0.4640405]
[1731528046616,46.31475595,210.32,210.27,5.2196405]
[1731528046917,46.31475595,210.34,210.27,0.4640405]
[1731528048228,46.31475595,210.36,210.28,46.31475595]
[1731528048815,46.31475595,210.36,210.29,4.7553]
[1731528049420,46.31475595,210.32,210.27,0.4640405]
[1731528049828,46.31475595,210.34,210.27,46.77879645]
[1731528050130,46.31475595,210.28,210.27,0.4640405]
[1731528050332,46.41475595,210.28,210.27,0.4640405]
[1731528050531,160.5,210.31,210.12,46.31475595]
[1731528050532,46.31475595,210.21,210.12,46.31475595]
[1731528050716,46.31475595,210.25,210.16,46.31475595]
[1731528051030,46.31475595,210.27,210.13,4.7589]
[1731528051339,4.7554,210.29,210.1,46.31475595]
[1731528051340,46.31475595,210.19,210.1,46.31475595]
[1731528051745,46.31475595,210.12,210.03,3.21345176]
[1731528051920,46.31475595,210.12,209.99,32.1212]
[1731528051921,46.31475595,210.1,209.99,32.1212]
[1731528052121,46.31475595,210.1,210.01,46.31475595]
[1731528052320,0.12549,210.11,210.04,46.31475595]
[1731528052523,46.31475595,210.14,210.04,46.31475595]
[1731528052718,58.94845595,210.32,210.07,4.7603]
[1731528052719,7.03785889,210.19,210.07,4.7603]
[1731528052918,160.5,210.28,210.12,46.31475595]
[1731528053124,46.31475595,210.23,210.14,46.31475595]
[1731528053319,46.31475595,210.25,210.07,4.8603]
[1731528053515,46.31475595,210.19,210.07,4.7603]
[1731528053715,46.31475595,210.17,210.08,46.31475595]
[1731528053933,46.31475595,210.19,210.1,46.31475595]
[1731528054127,46.31475595,210.19,210.08,46.31475595]
[1731528054333,46.31475595,210.19,210.1,46.31475595]
[1731528054839,46.31475595,210.21,210.13,4.7589]
[1731528055019,46.31475595,210.21,210.12,46.31475595]
[1731528055223,46.31475595,210.14,210.06,0.4640405]
[1731528055544,160.5,210.19,210.11,46.31475595]
[1731528055723,46.31475595,210.2,210.11,46.31475595]
[1731528055928,46.31475595,210.22,210.13,46.31475595]
[1731528056425,160.5,210.3,210.2,46.31475595]
[1731528056626,46.31475595,210.33,210.24,46.31475595]
[1731528056836,0.82049514,210.33,210.25,4.7562]
[1731528057138,46.31475595,210.27,210.18,46.31475595]
[1731528057322,46.31475595,210.25,210.09,32.9359]
[1731528057517,160.5,210.29,210.17,46.31475595]
[1731528057739,206.81475595,210.29,210.19,46.31475595]
[1731528057940,46.31475595,210.29,210.19,46.31475595]
[1731528058139,46.31475595,210.26,210.17,46.31475595]
[1731528058326,0.12549,210.25,210.17,46.31475595]
[1731528058641,46.31475595,210.24,210.15,46.31475595]
[1731528058945,46.31475595,210.24,210.16,4.7582]
[1731528059247,46.31475595,210.24,210.15,46.31475595]
[1731528059437,0.12549,210.21,210.13,46.31475595]
[1731528059626,46.31475595,210.22,210.13,51.07355595]
[1731528059826,160.5,210.23,210.15,46.31475595]
[1731528060127,46.31475595,210.26,210.15,46.31475595]
[1731528060328,46.31475595,210.26,210.17,46.31475595]